bitfinex-derivatives/quotes_BTCF0:USTF0_20241125
["timestamp","ask_amount","ask_price","bid_price","bid_amount"]
[1732492800633,0.031,98003.0,97976.0,0.3608]
[1732492800938,0.031,98003.0,97986.0,0.3608]
[1732492800939,0.1209685,97994.0,97986.0,0.3608]
[1732492801139,0.031,98003.0,97987.0,0.0318]
[1732492801334,0.031,98003.0,98002.0,0.0004]
[1732492801838,0.00010584,98004.0,98002.0,0.0004]
[1732492802230,0.00010584,98004.0,98003.0,0.0004]
[1732492809048,0.12108246,98004.0,98003.0,8.6e-07]
[1732492809252,0.00010584,98004.0,98003.0,8.6e-07]
[1732492811651,0.3608,98019.0,98003.0,8.6e-07]
[1732492811852,0.3608,98019.0,98009.0,0.3608]
[1732492812052,0.36136001,98028.0,98018.0,0.0004]
[1732492812355,0.39398323,98028.0,98027.0,0.0004]
[1732492812548,0.39408039,98028.0,98027.0,0.0004]
[1732492813151,0.39408039,98028.0,98027.0,4.55e-06]
[1732492813847,0.36089716,98028.0,98027.0,4.55e-06]
[1732492815256,9.716e-05,98028.0,98027.0,4.55e-06]
[1732492815650,0.36089716,98028.0,98027.0,4.55e-06]
[1732492817251,0.66693716,98028.0,98027.0,4.55e-06]
[1732492817450,0.66693716,98028.0,98021.0,7.935e-05]
[1732492817651,0.66693716,98028.0,97990.0,0.51408]
[1732492817652,0.3608,98022.0,97995.0,0.03336486]
[1732492817853,0.3608,98004.0,97990.0,0.51408]
[1732492818045,0.36159914,98004.0,97990.0,0.51408]
[1732492818244,0.36159914,98004.0,97990.0,0.3608]
[1732492818560,0.36159914,98004.0,97991.0,0.0314]
[1732492818957,0.00079914,98004.0,98001.0,0.15328]
[1732492819157,0.12071936,98026.0,98003.0,0.30612086]
[1732492819348,0.3608,98023.0,98006.0,0.3608]
[1732492819754,0.3608,98015.0,98003.0,8.6e-07]
[1732492819957,0.3608,98007.0,98003.0,8.6e-07]
[1732492820155,0.0004,98004.0,98003.0,8.6e-07]
[1732492820357,0.12071936,98018.0,98003.0,8.6e-07]
[1732492820549,0.3608,98027.0,98011.0,0.3608]
[1732492820750,0.3608,98027.0,98012.0,0.0312]
[1732492820952,0.3608,98027.0,98026.0,0.0004]
[1732492821261,0.39441454,98027.0,98026.0,0.0004]
[1732492825460,0.41056659,98027.0,98014.0,0.0303]
[1732492825655,0.12091951,98024.0,98014.0,0.0303]
[1732492825858,0.0004,98015.0,98014.0,0.0303]
[1732492826066,0.01658122,98015.0,98014.0,0.0303]
[1732492827078,0.01036889,98015.0,98014.0,0.0303]
[1732492827684,0.0004,98015.0,98014.0,0.0303]
[1732492828388,0.0004,98015.0,98003.0,8.6e-07]
[1732492828593,0.3608,98005.0,98003.0,8.6e-07]
[1732492828779,0.00656257,98004.0,98003.0,8.6e-07]
[1732492829084,0.0163727,98004.0,98003.0,8.6e-07]
[1732492829384,0.02623281,98004.0,98003.0,8.6e-07]
[1732492829587,0.0004,98004.0,98003.0,8.6e-07]
[1732492829787,0.00652164,98004.0,98003.0,0.00140174]
[1732492830182,0.01631626,98004.0,98003.0,0.00140174]
[1732492830375,0.02603671,98004.0,98003.0,0.00140174]
[1732492831086,0.37704209,98004.0,98003.0,0.00140174]
[1732492831383,0.38683671,98004.0,98003.0,0.00140174]
[1732492832083,0.53804731,98004.0,98003.0,0.00140174]
[1732492832280,0.39471263,98004.0,98003.0,0.00140174]
[1732492832475,0.38683671,98004.0,98003.0,0.00140174]
[1732492833284,0.44428476,98004.0,98003.0,0.00140174]
[1732492833491,0.54629209,98004.0,98003.0,0.00140174]
[1732492833680,0.51277946,98004.0,98003.0,0.00140174]
[1732492834385,0.0004,98004.0,98003.0,0.00140174]
[1732492834881,0.0065324,98004.0,98003.0,0.00140174]
[1732492835183,0.01638488,98004.0,98003.0,0.00140174]
[1732492835578,0.00658912,98004.0,98003.0,0.00140174]
[1732492835778,0.02431204,98004.0,98003.0,0.00140174]
[1732492835988,0.06601281,98004.0,98003.0,0.00140174]
[1732492836284,0.06601281,98004.0,97992.0,0.031]
[1732492836285,0.09238251,98004.0,97992.0,0.031]
[1732492836479,0.05097,97993.0,97992.0,0.031]
[1732492836684,0.05755912,97993.0,97992.0,0.031]
[1732492836882,0.06799831,97993.0,97992.0,0.031]
[1732492837187,0.07586235,97993.0,97992.0,0.031]
[1732492837386,0.06799831,97993.0,97992.0,0.031]
[1732492838489,0.050972,97989.0,97978.0,0.5816]
[1732492838678,0.06621035,97988.0,97975.0,0.05250975]
[1732492838879,0.06661021,97988.0,97975.0,0.05250975]
[1732492839079,0.06661021,97988.0,97975.0,0.00153075]
[1732492839080,0.16837492,97988.0,97975.0,0.00153075]
[1732492839284,0.16837492,97988.0,97979.0,0.050977]
[1732492839285,0.01702831,97988.0,97979.0,0.050977]
[1732492839685,0.01073671,97988.0,97975.0,0.00153075]
[1732492839988,0.0004,97988.0,97986.0,0.050973]
[1732492840792,0.0004,97988.0,97976.0,0.03307214]
[1732492841005,0.0065834,97988.0,97976.0,0.03307214]
[1732492841286,0.01637409,97988.0,97975.0,0.00153075]
[1732492842085,0.01637409,97988.0,97986.0,0.050973]
[1732492842291,0.01637409,97988.0,97975.0,0.03360234]
[1732492842292,0.00989345,97991.0,97990.0,0.050972]
[1732492842589,0.00052001,97992.0,97990.0,0.204532]
[1732492842784,0.050969,97996.0,97991.0,0.050971]
[1732492843090,0.050969,97996.0,97990.0,0.15356]
[1732492843091,0.06995335,98000.0,97995.0,0.0004]
[1732492843385,0.12100839,98004.0,98001.0,0.050966]
[1732492843786,0.12100839,98005.0,98003.0,0.0004]
[1732492843986,0.050964,98005.0,98003.0,0.0004]
[1732492844187,0.05882173,98005.0,98004.0,0.0004]
[1732492844380,0.050964,98005.0,98004.0,0.0004]
[1732492844580,0.05882551,98005.0,98004.0,0.0004]
[1732492844783,0.050964,98005.0,98004.0,0.0004]
[1732492846091,0.3608,98011.0,98004.0,0.0004]
[1732492846092,0.3608,98011.0,98009.0,0.050962]
[1732492846295,0.12110081,98011.0,98010.0,0.081461]
[1732492846484,0.12110081,98012.0,98010.0,0.081861]
[1732492846682,0.19105416,98014.0,98012.0,0.05096]
[1732492846882,0.1289654,98015.0,98012.0,0.35704]
[1732492847089,0.12110081,98014.0,98013.0,0.0004]
[1732492847284,0.1289654,98015.0,98012.0,0.05096]
[1732492847593,0.1289654,98015.0,98011.0,0.0315]
[1732492847594,0.0004,98013.0,98011.0,0.0315]
[1732492847791,0.0004,98013.0,98008.0,0.15316]
[1732492847988,0.12150081,98012.0,98008.0,0.15316]
[1732492848185,0.051362,98009.0,98008.0,0.15316]
[1732492848593,0.051362,98009.0,98008.0,0.15449672]
[1732492848992,0.05922767,98009.0,98008.0,0.00133672]
[1732492849496,0.051362,98009.0,98008.0,0.00133672]
[1732492850191,0.050963,98007.0,97982.0,0.15316]
[1732492850388,0.41963646,97988.0,97975.0,0.15469075]
[1732492850591,0.412173,97988.0,97975.0,0.00153075]
[1732492850896,0.76791491,97988.0,97975.0,0.00153075]
[1732492851088,0.46175548,97988.0,97975.0,0.00153075]
[1732492851393,0.67455147,97988.0,97975.0,0.00153075]
[1732492852096,0.49295548,97988.0,97975.0,0.00153075]
[1732492852791,0.5365888,97988.0,97975.0,0.00153075]
[1732492853497,0.5365888,97988.0,97971.0,0.050981]
[1732492853884,0.5365888,97988.0,97965.0,0.15316]
[1732492853885,0.47206594,97988.0,97965.0,0.15316]
[1732492854087,0.050974,97986.0,97970.0,0.3608]
[1732492854287,0.12101557,97984.0,97978.0,0.050977]
[1732492854489,0.050976,97982.0,97980.0,0.050976]
[1732492854798,0.00639219,97981.0,97980.0,0.050976]
[1732492855195,0.050977,97980.0,97977.0,0.00013236]
[1732492855398,0.00639219,97979.0,97977.0,0.00013236]
[1732492855693,0.00639219,97979.0,97978.0,0.050978]
[1732492855902,0.01670265,97987.0,97978.0,0.3062]
[1732492856105,0.01670265,97987.0,97985.0,0.050974]
[1732492856106,0.00615021,97986.0,97985.0,0.050974]
[1732492856701,0.050968,97997.0,97985.0,0.66696]
[1732492856889,0.00604924,97996.0,97989.0,0.050972]
[1732492857787,0.09081739,97999.0,97989.0,0.050972]
[1732492857788,0.05701824,97995.0,97989.0,0.050972]
[1732492858185,0.00785364,98004.0,97986.0,0.1532]
[1732492858186,0.09081739,97991.0,97990.0,0.30616]
[1732492858394,0.00604924,97991.0,97990.0,0.54001695]
[1732492858896,0.00604924,97991.0,97990.0,0.357132]
[1732492859103,0.12101557,98006.0,97990.0,0.357132]
[1732492859104,0.09081739,98006.0,98003.0,0.050965]
[1732492859290,0.09081739,98006.0,98003.0,0.15408]
[1732492859493,0.09081739,98007.0,98005.0,0.0004]
[1732492859791,0.09081739,98008.0,98006.0,0.0004]
[1732492859998,0.14177379,98008.0,98006.0,0.0004]
[1732492860191,0.050962,98008.0,98003.0,0.15408]
[1732492860389,0.09080959,98008.0,98003.0,0.205045]
[1732492860589,0.0004,98004.0,98003.0,0.205045]
[1732492860894,0.0004,98004.0,98001.0,0.15408]
[1732492861200,0.0099331,98006.0,98005.0,0.050964]
[1732492861500,0.09080959,98015.0,98013.0,0.05096]
[1732492861798,0.09080959,98015.0,98014.0,0.15408]
[1732492862002,0.09234079,98016.0,98014.0,0.15408]
[1732492862192,0.09234079,98016.0,98014.0,0.205039]
[1732492862396,0.09234079,98016.0,98014.0,0.565839]
[1732492862397,0.0015312,98016.0,98014.0,0.565839]
[1732492863089,0.09080959,98019.0,98014.0,0.565839]
[1732492863292,0.14176459,98022.0,98014.0,0.565839]
[1732492863489,0.050955,98022.0,98018.0,0.0004]
[1732492863693,0.050955,98022.0,98021.0,0.0004]
[1732492864093,0.06840773,98022.0,98021.0,0.0004]
[1732492864295,0.09135242,98022.0,98021.0,0.0004]
[1732492865102,0.2425752,98022.0,98021.0,0.0004]
[1732492865299,0.09920603,98022.0,98021.0,0.0004]
[1732492865494,0.09135242,98022.0,98021.0,0.0004]
[1732492865699,0.09920612,98022.0,98021.0,0.0004]
[1732492865997,0.09135242,98022.0,98021.0,0.0004]
[1732492866406,0.06055242,98022.0,98021.0,0.0004]
[1732492866701,0.18150261,98022.0,98021.0,0.0004]
[1732492866900,0.06055242,98022.0,98021.0,0.0004]
[1732492867199,0.050955,98022.0,98021.0,0.00180086]
[1732492869401,0.411755,98022.0,98021.0,0.00180086]
[1732492869595,0.42141001,98022.0,98021.0,0.00180086]
[1732492870100,0.00965501,98022.0,98021.0,0.30784086]
[1732492870408,0.00965501,98022.0,98021.0,0.00180086]
[1732492870409,0.050955,98022.0,98021.0,0.00180086]
[1732492870702,0.50237209,98022.0,98021.0,0.00180086]
[1732492870894,0.72745001,98022.0,98021.0,0.00180086]
[1732492871097,1.22505009,98022.0,97984.0,0.03240274]
[1732492871299,0.09059044,97995.0,97978.0,0.050978]
[1732492871498,0.06995335,98003.0,97978.0,0.050978]
[1732492871499,0.050975,97984.0,97978.0,0.050978]
[1732492871698,0.0004,97979.0,97977.0,0.00013236]
[1732492872019,0.00965501,97988.0,97951.0,0.18288495]
[1732492872020,0.3612,97978.0,97951.0,0.18288495]
[1732492872305,0.0004,97952.0,97935.0,0.3608]
[1732492872493,0.3608,97943.0,97941.0,0.050997]
[1732492872693,0.15988,97951.0,97941.0,0.050997]
[1732492872694,0.0059626,97942.0,97941.0,0.050997]
[1732492872900,0.0059626,97942.0,97935.0,0.3608]
[1732492872901,8.257e-05,97942.0,97935.0,0.3608]
[1732492873102,8.257e-05,97942.0,97934.0,0.05109809]
[1732492873103,0.051,97936.0,97934.0,9.809e-05]
[1732492873300,8.257e-05,97942.0,97934.0,9.809e-05]
[1732492873503,8.257e-05,97942.0,97941.0,0.050997]
[1732492874199,8.257e-05,97942.0,97941.0,0.051397]
[1732492877698,8.257e-05,97942.0,97941.0,0.0004]
[1732492877899,0.0059369,97942.0,97941.0,0.0004]
[1732492880308,0.0059369,97942.0,97941.0,6.48e-06]
[1732492880500,0.0059369,97942.0,97934.0,9.809e-05]
[1732492880701,0.4118,97935.0,97934.0,9.809e-05]
[1732492880899,0.42747412,97935.0,97934.0,9.809e-05]
[1732492883107,0.051014,97910.0,97905.0,0.051015]
[1732492883310,0.00593619,97909.0,97905.0,0.051015]
[1732492883512,0.00040085,97906.0,97905.0,0.051015]
[1732492884010,0.00040085,97906.0,97900.0,0.10010219]
[1732492884011,0.16660085,97906.0,97900.0,0.10010219]
[1732492884221,0.411818,97901.0,97900.0,0.10010219]
[1732492884518,0.90029213,97901.0,97900.0,0.10010219]
[1732492884815,0.90667018,97901.0,97900.0,0.10010219]
[1732492885117,0.60023018,97901.0,97900.0,0.10010219]
[1732492885406,0.051026,97886.0,97882.0,0.00153203]
[1732492885606,0.00593619,97885.0,97882.0,0.00153203]
[1732492885807,0.36120085,97883.0,97882.0,0.00153203]
[1732492886206,0.36129053,97883.0,97882.0,0.00153203]
[1732492886402,0.36129053,97883.0,97882.0,0.30801203]
[1732492886604,0.36129053,97883.0,97882.0,0.35904003]
[1732492887100,0.36129053,97883.0,97882.0,0.00153203]
[1732492887309,0.36716625,97883.0,97882.0,0.00153203]
[1732492889001,0.41819325,97883.0,97882.0,0.00153203]
[1732492889511,0.42762852,97883.0,97882.0,0.00153203]
[1732492891204,0.42762852,97883.0,97882.0,3.171e-05]
[1732492891514,0.37660152,97883.0,97882.0,3.171e-05]
[1732492892718,0.37673081,97883.0,97882.0,3.171e-05]
[1732492894212,0.37673081,97883.0,97874.0,0.051032]
[1732492894514,0.37673081,97883.0,97871.0,0.00011498]
[1732492894515,0.051033,97873.0,97871.0,0.00011498]
[1732492894712,0.00593857,97872.0,97871.0,1.55e-06]
[1732492895409,0.01406729,97872.0,97871.0,1.55e-06]
[1732492895613,0.00633942,97872.0,97871.0,1.55e-06]
[1732492895812,0.00040085,97872.0,97871.0,1.55e-06]
[1732492896019,0.00637636,97872.0,97871.0,1.55e-06]
[1732492897410,0.051034,97871.0,97867.0,0.051035]
[1732492897610,0.3608,97869.0,97867.0,0.051035]
[1732492897806,0.01602917,97868.0,97867.0,0.051035]
[1732492899016,0.02377558,97868.0,97867.0,0.00090134]
[1732492899214,0.01602917,97868.0,97867.0,0.051035]
[1732492899818,0.01602917,97868.0,97867.0,0.357555]
[1732492900617,0.02241246,97868.0,97867.0,0.357555]
[1732492901018,0.3608,97869.0,97867.0,0.523915]
[1732492901217,0.03363909,97879.0,97878.0,0.05103]
[1732492901519,0.45138168,97881.0,97878.0,0.0004]
[1732492901717,0.45086052,97881.0,97880.0,0.051029]
[1732492902018,0.3608,97881.0,97880.0,0.0004]
[1732492902416,0.3608,97881.0,97857.0,0.00010183]
[1732492902417,0.051035,97868.0,97857.0,0.00010183]
[1732492902719,0.3608,97864.0,97863.0,0.051038]
[1732492903722,0.3608,97864.0,97863.0,0.05422948]
[1732492904215,0.3608,97864.0,97863.0,0.051038]
[1732492904419,0.3608,97864.0,97863.0,0.05422956]
[1732492905212,0.36858452,97864.0,97863.0,0.00319156]
[1732492905413,0.3608,97864.0,97863.0,0.00319156]
[1732492906318,0.3608,97864.0,97863.0,0.00319167]
[1732492906719,0.3608,97864.0,97863.0,0.05422967]
[1732492907522,0.45106534,97864.0,97863.0,0.05422967]
[1732492907720,0.3608,97864.0,97863.0,0.05422967]
[1732492908227,0.3608,97864.0,97863.0,0.051038]
[1732492909524,0.36220402,97864.0,97863.0,0.051038]
[1732492910420,0.36220402,97864.0,97862.0,0.00262948]
[1732492910626,0.00140402,97863.0,97862.0,0.00262948]
[1732492911029,0.01041448,97863.0,97862.0,0.00262948]
[1732492911227,0.1310239,97863.0,97862.0,0.005821]
[1732492911524,0.01041448,97863.0,97862.0,0.005821]
[1732492912117,0.01041448,97863.0,97862.0,0.00262948]
[1732492913029,0.01597277,97863.0,97862.0,0.00262948]
[1732492913330,0.01037118,97863.0,97862.0,0.00262948]
[1732492913527,0.01037118,97863.0,97861.0,0.051038]
[1732492913528,0.06561561,97863.0,97861.0,0.03068891]
[1732492913734,0.3608,97864.0,97861.0,0.03068891]
[1732492913735,0.05104405,97862.0,97861.0,0.03068891]
[1732492913934,0.06601572,97862.0,97861.0,0.03068891]
[1732492914231,0.06601572,97862.0,97861.0,0.03388046]
[1732492914232,0.0660155,97862.0,97861.0,0.03388046]
[1732492916839,0.0660155,97862.0,97861.0,0.03388045]
[1732492917132,0.0660155,97862.0,97861.0,0.03068891]
[1732492918924,0.06601546,97862.0,97861.0,0.03068891]
[1732492923432,0.19755659,97862.0,97861.0,0.03068891]
[1732492923628,0.3608,97864.0,97861.0,0.30656]
[1732492923932,0.18118089,97886.0,97863.0,0.0004]
[1732492924131,0.18118089,97897.0,97882.0,0.411828]
[1732492924429,0.115214,97909.0,97882.0,0.411828]
[1732492924430,0.18118089,97903.0,97882.0,1.42037525]
[1732492924737,0.07014981,97892.0,97882.0,0.411828]
[1732492924937,0.05111668,97883.0,97882.0,0.0004]
[1732492925126,8.968e-05,97883.0,97882.0,0.23799396]
[1732492925433,8.968e-05,97883.0,97882.0,0.05461834]
[1732492926035,8.968e-05,97883.0,97882.0,0.05461898]
[1732492926835,8.968e-05,97883.0,97882.0,0.051428]
[1732492928732,8.968e-05,97883.0,97882.0,0.876348]
[1732492928940,6.8e-07,97883.0,97882.0,1.32195388]
[1732492929130,6.8e-07,97883.0,97882.0,1.78470049]
[1732492929333,6.8e-07,97883.0,97882.0,1.47940363]
[1732492929840,6.8e-07,97883.0,97882.0,1.17940363]
[1732492930132,6.8e-07,97883.0,97882.0,1.2100039]
[1732492930341,0.00133073,97883.0,97882.0,1.2100039]
[1732492930935,0.00140431,97883.0,97882.0,1.2100039]
[1732492933337,0.00140431,97883.0,97882.0,0.9100039]
[1732492934133,0.00140431,97883.0,97882.0,0.569868]
[1732492934330,0.00140431,97883.0,97882.0,0.412228]
[1732492934543,0.00140431,97883.0,97882.0,0.569868]
[1732492934733,0.00140431,97883.0,97882.0,0.051428]
[1732492934934,0.00140431,97883.0,97863.0,0.38122406]
[1732492934935,0.00140431,97883.0,97876.0,0.051031]
[1732492935151,0.032,97882.0,97867.0,0.15764]
[1732492935340,0.412231,97877.0,97867.0,0.15764]
[1732492935837,0.3612,97877.0,97875.0,0.051031]
[1732492936044,0.00140363,97876.0,97875.0,0.051031]
[1732492937044,0.00140363,97876.0,97875.0,0.357551]
[1732492937432,0.00140363,97876.0,97875.0,0.718351]
[1732492937628,0.00140363,97876.0,97875.0,0.96209176]
[1732492937830,0.00140363,97876.0,97874.0,0.15764]
[1732492938031,0.03330363,97875.0,97874.0,0.15764]
[1732492938432,0.03330363,97875.0,97869.0,0.051034]
[1732492938635,0.08433563,97875.0,97869.0,0.051034]
[1732492938832,0.0004,97870.0,97869.0,0.051034]
[1732492939044,0.00180363,97870.0,97869.0,0.051034]
[1732492939245,0.00180363,97870.0,97868.0,0.051035]
[1732492939435,0.00180363,97870.0,97861.0,0.18439037]
[1732492939436,0.0309,97869.0,97861.0,0.18439037]
[1732492939633,0.0309,97869.0,97857.0,0.42906183]
[1732492939634,0.051039,97861.0,97857.0,0.00010183]
[1732492939841,0.0306,97860.0,97858.0,0.05104]
[1732492940143,0.00140363,97859.0,97858.0,0.05104]
[1732492941439,0.00184037,97859.0,97858.0,0.05104]
[1732492941647,0.00152681,97859.0,97858.0,0.05104]
[1732492945442,0.0306,97860.0,97858.0,0.05104]
[1732492945742,0.0306,97860.0,97859.0,0.0004]
[1732492945942,0.03202476,97860.0,97859.0,0.0004]
[1732492946844,0.03246104,97860.0,97859.0,0.30696]
[1732492947049,0.03246104,97860.0,97859.0,0.48981783]
[1732492947346,0.03246104,97860.0,97859.0,0.30696]
[1732492948045,0.03246104,97860.0,97859.0,0.7085324]
[1732492948237,0.03246104,97860.0,97859.0,0.15808]
[1732492948438,0.03246104,97860.0,97859.0,0.40199429]
[1732492948637,0.03246104,97860.0,97859.0,0.0004]
[1732492950140,0.051042,97856.0,97851.0,0.051044]
[1732492950336,0.3608,97854.0,97852.0,0.051043]
[1732492950739,0.00186104,97853.0,97852.0,0.051043]
[1732492951941,0.0031896,97853.0,97852.0,0.051043]
[1732492952546,0.0031896,97853.0,97845.0,7.935e-05]
[1732492952547,0.00326525,97853.0,97845.0,7.935e-05]
[1732492952744,0.00326525,97853.0,97852.0,0.051043]
[1732492952941,0.00326525,97853.0,97845.0,0.05112635]
[1732492953148,0.00326525,97853.0,97846.0,0.051046]
[1732492953149,0.051044,97851.0,97846.0,0.051046]
[1732492953344,0.051047,97846.0,97845.0,7.935e-05]
[1732492953642,0.41511225,97846.0,97845.0,7.935e-05]
[1732492954049,0.05105,97840.0,97836.0,0.051052]
[1732492954351,0.3605772,97837.0,97836.0,0.051052]
[1732492954748,0.36384245,97837.0,97825.0,0.15816]
[1732492955052,0.0008,97826.0,97825.0,0.051058]
[1732492955246,0.051058,97825.0,97822.0,0.00010505]
[1732492955438,0.051058,97825.0,97822.0,0.03377316]
[1732492955643,0.03516525,97824.0,97822.0,0.00010505]
[1732492956151,0.0008,97823.0,97822.0,0.00010505]
[1732492956746,0.00406525,97823.0,97822.0,0.00010505]
[1732492958247,0.00538904,97823.0,97822.0,0.00010505]
[1732492958550,0.00546869,97823.0,97822.0,0.00010505]
[1732492958746,0.051061,97819.0,97815.0,0.03269403]
[1732492958950,0.051061,97819.0,97814.0,0.00153323]
[1732492959144,0.00458904,97817.0,97814.0,0.00153323]
[1732492959349,0.0008,97815.0,97814.0,0.00153323]
[1732492959556,0.0008,97815.0,97814.0,0.05259623]
[1732492960257,0.00538904,97815.0,97814.0,0.00153323]
[1732492961455,0.00538904,97815.0,97814.0,0.03414686]
[1732492961656,0.05653284,97815.0,97814.0,0.00153323]
[1732492962354,0.051065,97811.0,97809.0,0.00012106]
[1732492962857,0.00546984,97810.0,97809.0,0.00012106]
[1732492963157,0.051068,97806.0,97798.0,0.3608]
[1732492963456,0.0008,97801.0,97798.0,0.3608]
[1732492963647,0.00546984,97801.0,97797.0,0.051072]
[1732492964050,0.00546984,97801.0,97800.0,0.151071]
[1732492966448,0.00546984,97801.0,97800.0,0.1]
[1732492968358,0.00546984,97801.0,97775.0,0.39372]
[1732492968359,0.051073,97795.0,97780.0,0.051081]
[1732492968562,0.051073,97795.0,97771.0,0.15824]
[1732492968563,0.3608,97784.0,97781.0,0.05108]
[1732492968749,0.3608,97784.0,97773.0,0.051084]
[1732492968750,0.00466984,97783.0,97773.0,0.051084]
[1732492968955,0.051081,97781.0,97773.0,0.051084]
[1732492969160,0.051081,97781.0,97772.0,0.03220368]
[1732492969161,0.0314,97782.0,97780.0,0.051081]
[1732492969551,0.0314,97782.0,97781.0,0.0004]
[1732492969759,0.03606984,97782.0,97781.0,0.0004]
[1732492974259,0.00466984,97782.0,97781.0,0.0004]
[1732492974560,0.00466984,97782.0,97781.0,0.3612]
[1732492974763,0.00466984,97782.0,97781.0,0.58767381]
[1732492975062,0.00466984,97782.0,97781.0,0.52267381]
[1732492975270,0.00466984,97782.0,97781.0,0.51948]
[1732492975456,0.00466984,97782.0,97781.0,0.0004]
[1732492978362,0.00986008,97782.0,97781.0,0.0004]
[1732492978664,0.04279195,97782.0,97781.0,0.0004]
[1732492978866,0.00986008,97782.0,97781.0,0.0004]
[1732492979171,0.05115893,97781.0,97779.0,0.00153373]
[1732492979365,0.00519024,97780.0,97779.0,0.00153373]
[1732492979670,0.00639024,97780.0,97779.0,0.00153373]
[1732492979872,0.01106008,97780.0,97779.0,0.00153373]
[1732492980782,0.01106008,97780.0,97773.0,0.05117204]
[1732492980981,0.3608,97777.0,97773.0,0.05117204]
[1732492981178,0.0012,97774.0,97773.0,0.05117204]
[1732492981483,0.00639024,97774.0,97773.0,0.05117204]
[1732492981873,0.01106008,97774.0,97773.0,0.05117204]
[1732492982790,0.01106008,97774.0,97773.0,8.804e-05]
[1732492982976,0.01613865,97774.0,97773.0,8.804e-05]
[1732492986490,0.01613865,97774.0,97755.0,0.58784]
[1732492986491,0.32297865,97774.0,97755.0,0.58784]
[1732492986686,0.32297865,97774.0,97759.0,0.051092]
[1732492986687,0.3608,97760.0,97759.0,0.051092]
[1732492986883,0.36546984,97760.0,97759.0,0.051092]
[1732492987280,0.36546984,97760.0,97755.0,0.0327025]
[1732492987480,0.051093,97758.0,97745.0,7.352e-05]
[1732492987690,0.051091,97752.0,97751.0,0.05109]
[1732492987988,0.00466984,97752.0,97750.0,0.051092]
[1732492988381,0.0012,97751.0,97750.0,0.051092]
[1732492988784,0.00638281,97751.0,97750.0,0.051092]
[1732492988985,0.01105265,97751.0,97750.0,0.051092]
[1732492989293,0.180587,97786.0,97750.0,0.051092]
[1732492989294,0.01257443,97768.0,97767.0,0.051083]
[1732492989592,0.01257443,97770.0,97769.0,0.051082]
[1732492989886,0.13584981,97780.0,97769.0,0.0004]
[1732492990386,0.16918447,97780.0,97769.0,0.0004]
[1732492990885,0.16918447,97780.0,97779.0,0.0004]
[1732492991186,0.09903466,97780.0,97779.0,0.0004]
[1732492994186,0.10431644,97780.0,97779.0,0.0004]
[1732492996186,0.11691837,97780.0,97779.0,0.0004]
[1732492996788,0.10431644,97780.0,97779.0,0.0004]
[1732492996981,0.22491811,97780.0,97779.0,0.0004]
[1732492997185,0.10431644,97780.0,97779.0,0.0004]
[1732492998390,0.56160554,97780.0,97779.0,0.0004]
[1732492998592,0.46925367,97780.0,97761.0,0.1824932]
[1732492998885,0.46925367,97780.0,97747.0,0.3041554]
[1732492998886,0.0004,97762.0,97759.0,0.051087]
[1732492999085,0.01413263,97762.0,97751.0,0.1824932]
[1732492999287,0.051486,97760.0,97754.0,0.051089]
[1732492999488,0.051486,97760.0,97748.0,0.55227749]
[1732492999489,0.0004,97752.0,97751.0,0.051091]
[1732493001187,0.00587773,97752.0,97751.0,0.051091]
[1732493001791,0.0333838,97752.0,97751.0,0.051091]
[1732493001994,0.00587773,97752.0,97751.0,0.051091]
[1732493003392,0.051091,97751.0,97747.0,0.3608]
[1732493003694,0.25116735,97759.0,97745.0,7.352e-05]
[1732493003695,0.0004,97748.0,97745.0,7.352e-05]
[1732493003902,0.411894,97746.0,97745.0,7.352e-05]
[1732493004084,0.4265361,97746.0,97745.0,7.352e-05]
[1732493004289,0.412294,97746.0,97745.0,7.352e-05]
[1732493004994,0.53340449,97746.0,97745.0,7.352e-05]
[1732493005186,0.4262579,97746.0,97745.0,7.352e-05]
[1732493005384,0.55995781,97746.0,97745.0,7.352e-05]
[1732493005590,0.4262579,97746.0,97745.0,7.352e-05]
[1732493005785,0.547335,97746.0,97745.0,7.352e-05]
[1732493005991,0.4262579,97746.0,97745.0,7.352e-05]
[1732493006194,0.41766473,97746.0,97745.0,7.352e-05]
[1732493006998,0.39984767,97746.0,97745.0,7.352e-05]
[1732493007198,0.40828845,97746.0,97745.0,7.352e-05]
[1732493007502,0.40819194,97746.0,97745.0,7.352e-05]
[1732493010099,0.005675,97746.0,97745.0,7.352e-05]
[1732493010289,0.005675,97746.0,97745.0,0.09527352]
[1732493010290,0.0004,97746.0,97745.0,0.09527352]
[1732493011100,0.0004,97746.0,97745.0,0.03197352]
[1732493011296,0.0004,97746.0,97745.0,0.19057352]
[1732493011497,0.00588166,97746.0,97745.0,0.19057352]
[1732493012692,0.00588166,97746.0,97745.0,0.03197352]
[1732493012693,0.0004,97746.0,97745.0,0.03197352]
[1732493013009,0.0004,97746.0,97745.0,0.15867352]
[1732493013301,0.00596262,97746.0,97745.0,0.15867352]
[1732493013500,0.00596261,97746.0,97745.0,0.15867352]
[1732493014388,0.00596261,97746.0,97745.0,7.352e-05]
[1732493015395,0.01580683,97746.0,97745.0,7.352e-05]
[1732493017898,0.01019169,97746.0,97745.0,7.352e-05]
[1732493018099,0.01588617,97746.0,97745.0,7.352e-05]
[1732493018295,0.0004,97746.0,97745.0,7.352e-05]
[1732493018495,0.01605836,97746.0,97745.0,7.352e-05]
[1732493019700,0.04635836,97746.0,97745.0,7.352e-05]
[1732493019890,0.0476935,97746.0,97745.0,7.352e-05]
[1732493022108,0.03774064,97746.0,97745.0,7.352e-05]
[1732493022312,0.04746392,97746.0,97745.0,7.352e-05]
[1732493022604,0.04695563,97746.0,97745.0,7.352e-05]
[1732493022793,0.04695563,97746.0,97745.0,0.00125076]
[1732493023600,0.01665563,97746.0,97745.0,0.00125076]
[1732493025303,0.37745563,97746.0,97745.0,0.00125076]
[1732493025503,0.38687614,97746.0,97745.0,0.00125076]
[1732493026007,0.02049222,97746.0,97745.0,0.00125076]
[1732493026211,0.01134987,97746.0,97745.0,0.00125076]
[1732493026510,0.01209942,97746.0,97745.0,0.00125076]
[1732493026697,0.02124177,97746.0,97745.0,0.00125076]
[1732493027013,0.02124177,97746.0,97745.0,0.05234476]
[1732493027509,0.01209942,97746.0,97745.0,0.05234476]
[1732493027707,0.01915708,97746.0,97745.0,0.05234476]
[1732493027899,0.02189815,97746.0,97745.0,0.05234476]
[1732493028506,0.02189815,97746.0,97745.0,0.00125076]
[1732493028707,0.07298328,97746.0,97745.0,0.00125076]
[1732493029407,0.0891568,97746.0,97745.0,0.00125076]
[1732493029710,0.051102,97730.0,97729.0,0.1824932]
[1732493029904,0.051102,97730.0,97721.0,0.6649554]
[1732493029905,0.051103,97729.0,97727.0,0.1824932]